Cogmind - Beta 11.1 @@@ ROGUE MODE // 2022.06.14 @ 17:23:52 Player: ChromeKnight Result: Destroyed by S-10 Pest with Light Assault Rifle Performance ------------- Evolutions (1) 500 Regions Visited (5) 1000 Robots Destroyed (50) 250 Value Destroyed (1098) 1098 Prototype IDs (2) 40 Alien Tech Used (0) 0 Bonus (794) 794 TOTAL SCORE: 3682 Bonus ------- High Alert Combat Kills 94 Entered Garrisons 200 Used RIF Installer 500 Cogmind --------- Core Integrity 0/400 Matter 27/300 Energy 98/100 System Corruption 0% Temperature Cool (0) Movement Rolling (135) Ox3 Location -9/Garrison Parts ------- > --- POWER (1) -------- (None) > --- PROPULSION (2) --- Wheel Compact Wheel > --- UTILITY (4) ------ Huge Storage Unit Improved Signal Interpreter Utility Shielding Improved Weapon Shielding > --- WEAPON (2) ------- Rocket Launcher Makeshift Sword > --- INVENTORY (25) --- Light Treads Improved Flight Unit Improved Flight Unit Signal Interpreter Reaction Control System Reaction Control System Weapon Shielding Weapon Shielding Improved Weapon Shielding Improved Weapon Shielding Light Armor Plating Light Armor Plating Advanced Beam Rifle Advanced Beam Rifle Advanced Beam Rifle Assault Rifle Shotgun Improved Light Cannon Improved Light Cannon Plasma Cutter Plasma Cutter Peak State ------------ > --- POWER ------------ Improved Ion Engine > --- PROPULSION ------- Wheel Compact Wheel > --- UTILITY ---------- Huge Storage Unit Improved Signal Interpreter Utility Shielding Improved Weapon Shielding > --- WEAPON ----------- Rocket Launcher Makeshift Sword > --- INVENTORY -------- Light Treads Improved Flight Unit Improved Flight Unit Signal Interpreter Reaction Control System Reaction Control System Weapon Shielding Weapon Shielding Improved Weapon Shielding Improved Weapon Shielding Light Armor Plating Light Armor Plating Advanced Beam Rifle Advanced Beam Rifle Advanced Beam Rifle Assault Rifle Shotgun Improved Light Cannon Improved Light Cannon Plasma Cutter Plasma Cutter [Rating: 22] Favorites ----------- Power Ion Engine Engine Ion Engine Propulsion Light Treads Treads Light Treads Wheel Wheel Flight Unit Improved Flight Unit Utility Huge Storage Unit Storage Huge Storage Unit Processor Improved Signal Interpreter Protection Utility Shielding Weapon Light Assault Rifle Energy Gun Advanced Beam Rifle Ballistic Gun Light Assault Rifle Ballistic Cannon Improved Light Cannon Launcher Rocket Launcher Slashing Weapon Makeshift Sword Build | -11 -10 -10 -9 -9 -9 ------- Run | Scr Mat Min Mat Sto Gar Slots Evolved 2 | . . . 2 . . Power . | . . . . . . Propulsion . | . . . . . . Utility 2 | . . . 2 . . Weapon . | . . . . . . Parts Attached 53 | 6 2 6 30 4 5 Power 8 | 1 . . 6 1 . Engine 8 | 1 . . 6 1 . Core . | . . . . . . Reactor . | . . . . . . Propulsion 14 | 2 . 2 7 2 1 Treads 6 | 2 . 1 3 . . Leg . | . . . . . . Wheel 7 | . . 1 3 2 1 Hover . | . . . . . . Flight 1 | . . . 1 . . Utility 8 | 1 1 . 5 . 1 Device . | . . . . . . Storage 2 | 1 1 . . . . Processor 1 | . . . 1 . . Hackware . | . . . . . . Protection 5 | . . . 4 . 1 Artifact . | . . . . . . Weapon 23 | 2 1 4 12 1 3 Energy Gun 1 | . . . 1 . . Energy Cannon . | . . . . . . Ballistic Gun 13 | 2 1 1 7 1 1 Ballistic Cannon 1 | . . . 1 . . Launcher 6 | . . 2 3 . 1 Special Weapon . | . . . . . . Impact Weapon . | . . . . . . Slashing Weapon 2 | . . 1 . . 1 Piercing Weapon . | . . . . . . Special Melee Weapon . | . . . . . . Unidentified Prototypes 2 | . . . 2 . . Parts Lost 17 | . . 5 7 4 1 Power 4 | . . . 3 . 1 Propulsion 7 | . . 2 3 2 . Utility 2 | . . . 1 1 . Weapon 4 | . . 3 . 1 . Highest Loss Streak 4 | . . 2 2 4 1 To Critical Strikes . | . . . . . . Average Slot Usage (%) 88 | . 85 81 93 97 99 Engine 12 | . 14 14 10 11 10 Treads 15 | . 28 23 5 2 . Wheel 9 | . . 4 14 18 22 Storage 12 | . 14 14 11 11 11 Processor 4 | . . . 10 11 11 Protection 8 | . . . 18 21 21 Ballistic Gun 17 | . 28 17 11 20 8 Ballistic Cannon 1 | . . . 5 . . Launcher 4 | . . 5 4 1 9 Slashing Weapon 1 | . . 1 . . 3 Naked Turns . | . . . . . . Heaviest Build 97 | 12 87 91 97 96 97 Greatest Support 40 | 40 40 40 20 20 26 Greatest Overweight (x) 9 | . 2 9 9 9 3 Average Overweight (x) 4 | . 1 4 6 5 3 Largest Inventory Capacity 25 | 8 25 25 25 25 25 Average Capacity 23 | 6 19 25 25 25 25 Most Carried 25 | 1 12 12 25 25 23 Average Carried 14 | . 8 11 20 24 21 Final Capacity 25 | 8 25 25 25 25 25 Final Carried 25 | 1 11 12 25 24 21 Class Distribution -------------------- 100% | Mutant Dominant Class ---------------- Mutant | -10/Materials Mutant | -10/Mines Mutant | -9/Materials Mutant | -9/Storage Mutant | -9/Garrison Resources | -11 -10 -10 -9 -9 -9 ----------- Run | Scr Mat Min Mat Sto Gar Matter Collected 1280 | 203 99 319 500 122 37 Remotely . | . . . . . . Salvage Created 1110 | . 112 44 656 232 66 Parts 95 | . 10 . 59 16 10 Haulers Intercepted 2 | . . . 2 . . Recyclers Shooed 1 | . 1 . . . . Parts Field Recycled . | . . . . . . Retrieved Matter . | . . . . . . Parts Self-Destructed . | . . . . . . Prevented . | . . . . . . Kills | -11 -10 -10 -9 -9 -9 ------- Run | Scr Mat Min Mat Sto Gar Combat Hostiles Destroyed 58 | . 2 16 27 6 7 Melee 1 | . . . . . 1 Guns 18 | . 2 . 10 6 . Cannons 6 | . . . 6 . . AOE 33 | . . 16 11 . 6 Classes Destroyed 7 | . 2 1 4 . . Worker 2 | . . . 2 . . Hauler 2 | . . . 2 . . Watcher 4 | . 1 . 2 1 . Swarmer 23 | . . . 14 3 6 Grunt 13 | . 2 . 9 2 . Sentry 6 | . . . 4 1 1 Assembled 16 | . . 16 . . . Best Kill Streak 6 | . 2 6 6 3 4 Combat Bots Only 6 | . 2 6 6 3 4 Max Kills in Single Turn 3 | . 1 3 3 1 3 Gunslinging . | . . . . . . Exploded 3 | . . 3 2 . 3 Melee 1 | . . . . . 1 Uniques/NPCs Destroyed . | . . . . . . Combat | -11 -10 -10 -9 -9 -9 -------- Run | Scr Mat Min Mat Sto Gar Damage Taken 2516 | . 128 739 995 474 180 Core 529 | . 10 111 212 147 49 Absorbed by Shields . | . . . . . . Redirected to Shielding 240 | . . . 149 34 57 Regen/Repaired (Parts) 55 | . . . . 55 . Core Remaining (%) 75 | 100 . 51 . . . Volleys Fired 116 | . 11 29 55 12 9 Largest 2 | . 2 2 2 2 1 Hottest 72 | . 40 53 72 43 33 Shots Fired 195 | . 22 40 100 24 9 Gun 116 | . 22 17 53 24 . Cannon 35 | . . . 35 . . Launcher 44 | . . 23 12 . 9 Special . | . . . . . . Kinetic 151 | . 22 17 88 24 . Thermal . | . . . . . . Explosive 44 | . . 23 12 . 9 Electromagnetic . | . . . . . . Robot Hit Streak 19 | . 10 5 11 19 3 Robot Miss Streak 6 | . 2 4 6 1 4 Penetration Max . | . . . . . . Secondary Targets 1 | . 1 . . . . Max Gunslinging Chain 1 | . 1 . . . . Shots Hit Robots 118 | . 15 17 63 19 4 Core Hits 97 | . 9 28 42 10 8 Critical Kills . | . . . . . . Critical Parts Destroyed . | . . . . . . Critical Strikes 3 | . . 1 2 . . Destroy 1 | . . 1 . . . Blast 2 | . . . 2 . . Melee Attacks 3 | . . . . . 3 Impact . | . . . . . . Slashing 3 | . . . . . 3 Piercing . | . . . . . . Sneak Attacks . | . . . . . . Combat Hostiles . | . . . . . . Follow-up Attacks . | . . . . . . Damage Inflicted 3647 | . 111 1036 1896 267 337 Guns 1073 | . 111 78 617 267 . Cannons 375 | . . . 375 . . Explosions 2165 | . . 958 904 . 303 Melee 34 | . . . . . 34 Ramming . | . . . . . . Kinetic 1448 | . 111 78 992 267 . Thermal . | . . . . . . Explosive 2165 | . . 958 904 . 303 Electromagnetic . | . . . . . . Impact . | . . . . . . Slashing 34 | . . . . . 34 Piercing . | . . . . . . Highest Corruption . | . . . . . . Average Corruption . | . . . . . . Corruption Purged . | . . . . . . Corruption Blocked . | . . . . . . Overload Shots . | . . . . . . Overflow Damage 114 | . . 40 74 . . Projectiles 21 | . . . 21 . . Explosions 93 | . . 40 53 . . Melee . | . . . . . . Knockbacks 1 | . . . 1 . . Impact . | . . . . . . Kinetic 1 | . . . 1 . . Secondary . | . . . . . . Self-Inflicted Damage 253 | . . 217 . . 36 Shots 7 | . . 6 . . 1 Rammed . | . . . . . . Targets Rammed . | . . . . . . Kicked . | . . . . . . Crushed . | . . . . . . Highest Temperature 48 | . 9 28 48 1 3 Average Temperature 11 | . 8 17 11 1 3 Received Heat Transfer 600 | . 75 120 267 120 18 Siege Activations . | . . . . . . Robots Corrupted . | . . . . . . Combat Hostiles . | . . . . . . Parts Fried . | . . . . . . Impact Corruptions . | . . . . . . Robots Melted . | . . . . . . Combat Hostiles . | . . . . . . Parts Melted . | . . . . . . Heat Transferred . | . . . . . . Parts Sabotaged . | . . . . . . Parts Stolen . | . . . . . . Parts Stripped . | . . . . . . Power Chain Reactions . | . . . . . . Missiles Intercepted . | . . . . . . Alert | -11 -10 -10 -9 -9 -9 ------- Run | Scr Mat Min Mat Sto Gar Peak Influence 804 | . 90 111 804 465 624 Initial 290 | . . . . 290 282 Average 176 | . 18 11 348 368 537 Maximum Alert Level 3 | . . . 3 2 2 Low Security (%) 69 | 100 100 100 47 . . Level 1 9 | . . . 13 65 11 Level 2 20 | . . . 32 34 88 Level 3 1 | . . . 6 . . Level 4 . | . . . . . . Level 5 . | . . . . . . High Security . | . . . . . . Max Security . | . . . . . . Squads Dispatched 5 | . . . 2 3 . Investigation 1 | . . . 1 . . Extermination . | . . . . . . Reinforcement 2 | . . . 1 1 . Assault . | . . . . . . Garrison 2 | . . . . 2 . Intercept . | . . . . . . Searches Triggered . | . . . . . . Construction Impeded . | . . . . . . Haulers Reinforced . | . . . . . . Active Scanning Responses . | . . . . . . Cargo Convoy Interrupts . | . . . . . . Stealth | -11 -10 -10 -9 -9 -9 --------- Run | Scr Mat Min Mat Sto Gar Distress Signals . | . . . . . . Communications Jammed . | . . . . . . Distress Signals . | . . . . . . Times Spotted 76 | . 5 18 34 10 9 Peak Tracking Total 8 | . 2 4 8 3 4 Tactical Retreats 2 | . . . 1 . 1 Traps | -11 -10 -10 -9 -9 -9 ------- Run | Scr Mat Min Mat Sto Gar Traps Triggered 3 | . . . . 2 1 Indirectly . | . . . . . . Trap Hack Attempts . | . . . . . . Triggered . | . . . . . . Disarmed . | . . . . . . Reprogrammed . | . . . . . . Reused . | . . . . . . Traps Extracted . | . . . . . . Installed . | . . . . . . Triggered . | . . . . . . Machines | -11 -10 -10 -9 -9 -9 ---------- Run | Scr Mat Min Mat Sto Gar Machines Disabled 6 | . . 1 3 . 2 Max in Single Turn 2 | . . 1 1 . 2 Machines Sabotaged . | . . . . . . Garrisons Compromised . | . . . . . . Overloaded Fab Kills . | . . . . . . Hacking | -11 -10 -10 -9 -9 -9 --------- Run | Scr Mat Min Mat Sto Gar Machines Accessed 8 | . 4 . 1 3 . Terminals 6 | . 4 . 1 1 . Fabricators . | . . . . . . Repair Stations 1 | . . . . 1 . Recycling Units . | . . . . . . Scanalyzers . | . . . . . . Garrison Access 1 | . . . . 1 . Total Hacks 17 | . 9 . 3 5 . Successful 10 | . 4 . 1 5 . Failed 7 | . 5 . 2 . . Catastrophic 1 | . 1 . . . . Database Lockouts . | . . . . . . Manual 14 | . 9 . 3 2 . Terminals 14 | . 9 . 3 2 . Fabricators . | . . . . . . Repair Stations 2 | . . . . 2 . Recycling Units . | . . . . . . Scanalyzers . | . . . . . . Garrison Access 1 | . . . . 1 . Terminal Hacks . | . . . . . . Fabricator Hacks . | . . . . . . Repair Station Hacks 2 | . . . . 2 . Scan Component 1 | . . . . 1 . Repair 1 | . . . . 1 . Recycling Unit Hacks . | . . . . . . Scanalyzer . | . . . . . . Garrison Access Hacks 1 | . . . . 1 . Unlock Access 1 | . . . . 1 . Unauthorized Hacks 7 | . 4 . 1 2 . Terminals 7 | . 4 . 1 2 . Botnet 4 | . 2 . 1 1 . Operators 3 | . 2 . . 1 . Fabricators . | . . . . . . Repair Stations . | . . . . . . Recycling Units . | . . . . . . Scanalyzers . | . . . . . . Garrison Access . | . . . . . . Data Cores Recovered . | . . . . . . Used . | . . . . . . Hacking Detections 6 | . 4 . 1 1 . Full Trace Events 1 | . . . 1 . . Feedback Events . | . . . . . . Feedback Blocked . | . . . . . . Robot Schematics Acquired . | . . . . . . Robots Built . | . . . . . . Authchips . | . . . . . . Time . | . . . . . . Total Robot Build Rating . | . . . . . . Part Schematics Acquired . | . . . . . . Parts Built . | . . . . . . Authchips . | . . . . . . Time . | . . . . . . Total Part Build Rating . | . . . . . . Parts Repaired 1 | . . . . 1 . Time 32 | . . . . 32 . Parts Recycled . | . . . . . . Recycled Matter . | . . . . . . Retrieved Matter . | . . . . . . Retrieved Components . | . . . . . . Parts Scanalyzed . | . . . . . . Part Schematics Acquired . | . . . . . . Parts Damaged . | . . . . . . Bothacking | -11 -10 -10 -9 -9 -9 ------------ Run | Scr Mat Min Mat Sto Gar Used RIF Installer 1 | . . . . . 1 Robots Hacked . | . . . . . . Non-combat . | . . . . . . Combat . | . . . . . . Robot Hacks Applied . | . . . . . . Relay Couplers Released . | . . . . . . Fabnet Peak Effective % . | . . . . . . Robots Rewired . | . . . . . . Allies Hacked . | . . . . . . Hacks Repelled . | . . . . . . Allies | -11 -10 -10 -9 -9 -9 -------- Run | Scr Mat Min Mat Sto Gar Total Allies . | . . . . . . Largest Group . | . . . . . . Highest-Rated Group . | . . . . . . Highest-Rated Ally . | . . . . . . Total Orders . | . . . . . . Ally Attacks . | . . . . . . Total Damage . | . . . . . . Kills . | . . . . . . Allies Corrupted . | . . . . . . Allies Melted . | . . . . . . Intel | -11 -10 -10 -9 -9 -9 ------- Run | Scr Mat Min Mat Sto Gar Robot Analysis Total . | . . . . . . Derelict Logs Recovered 1 | . . 1 . . . Drone Launches . | . . . . . . Drone Recoveries . | . . . . . . Exploration | -11 -10 -10 -9 -9 -9 ------------- Run | Scr Mat Min Mat Sto Gar Turns Passed 4499 | 66 954 1613 999 327 540 Spaces Moved 1803 | 40 373 566 406 102 316 Core 6 | 6 . . . . . Treads 727 | 34 373 317 3 . . Legs . | . . . . . . Wheels 1070 | . . 249 403 102 316 Hover . | . . . . . . Flight . | . . . . . . Fastest Speed 50 | 50 160 200 140 140 135 Average Speed 213 | 143 243 269 185 166 135 Slowest Speed 480 | 160 320 480 480 215 135 Overloaded Moves . | . . . . . . Propulsion Burnouts . | . . . . . . Robots Hopped . | . . . . . . Cave-ins Triggered . | . . . . . . Exploration Rate (%) 50 | 4 68 94 45 25 64 Regions Visited 5 Branch Regions 2 Pre-discovered Areas 1 | . . 1 . . . Known Exits Taken 2 | . . . 1 1 . Unknown Exits Taken 3 | 1 1 1 . . . Scrap Searched . | . . . . . . Spaces Dug 2 | . . . . . 2 Terrain Destroyed 279 | . . 179 84 . 16 Melee 2 | . . . . . 2 Projectile 4 | . . . 4 . . AOE 273 | . . 179 80 . 14 Terrain Rammed . | . . . . . . Walls Destroyed . | . . . . . . Machines Disabled . | . . . . . . Actions | -11 -10 -10 -9 -9 -9 --------- Run | Scr Mat Min Mat Sto Gar Total 2266 | 46 402 615 550 236 417 Wait 230 | . 5 7 27 116 75 Move 1798 | 39 372 565 405 101 316 Hop . | . . . . . . Pick Up 37 | 1 10 7 17 2 . Fast Attach 20 | 6 1 . 11 1 1 Attach 14 | . . 5 5 2 2 Detach 3 | . . . 3 . . Swap 19 | . 1 1 14 1 2 Drop 18 | . 2 1 13 1 1 Fire 116 | . 11 29 55 12 9 Melee 3 | . . . . . 3 Ram . | . . . . . . Kick . | . . . . . . Crush . | . . . . . . Escape Stasis 8 | . . . . . 8 Rewire . | . . . . . . Trap . | . . . . . . Miscellaneous . | . . . . . . Route ------- -11/Scrapyard -10/Materials (discovered 2 exits: *Mat / [*Min]) -10/Mines -9/Materials (discovered 2 exits: *Mat / *Sto) -9/Storage -9/Garrison (discovered 3 exits: *Rec x3) History --------- Turn | Location | Event 6 | -11/Scrapyard | Discovered new exit (range 16) 67 | -11/Scrapyard | Entered Materials 155 | -10/Materials | Discovered new exit (range 16) 169 | -10/Materials | Met 8R-AWN 315 | -10/Materials | Build established: Mutant 736 | -10/Materials | Discovered new exit (range 5) 1021 | -10/Materials | Entered Mines 1025 | -10/Mines | Followed 8R-AWN into the Mines 1089 | -10/Mines | Discovered new exit (range 6) 1938 | -10/Mines | Learned Materials stockpile data 1961 | -10/Mines | Assembled infested the area 1966 | -10/Mines | Assisted by a Guerilla fighting off Assembled 2196 | -10/Mines | Learned location of Storage (-9) 2257 | -10/Mines | A weapon hastily lodged in a ceiling crevice suddenly fell to the ground 2634 | -10/Mines | Entered Materials 2634 | -9/Materials | Evolved 2 slots: Utility x2 3182 | -9/Materials | Discovered new exit (range 8) 3205 | -9/Materials | Identified exit to Materials 3585 | -9/Materials | Discovered new exit (range 4) 3587 | -9/Materials | Core integrity fell below 50% 3602 | -9/Materials | Identified exit to Storage 3633 | -9/Materials | Entered Storage 3732 | -9/Storage | Repaired Rocket Launcher 3843 | -9/Storage | Garrison activated, responded to threat 3956 | -9/Storage | Core integrity fell below 20% 3958 | -9/Storage | Identified exit to Garrison 3960 | -9/Storage | Entered Garrison 3989 | -9/Garrison | Lost 4 parts (2n1u1w) 4023 | -9/Garrison | Triggered checkpoint 4054 | -9/Garrison | Triggered checkpoint 4129 | -9/Garrison | Discovered new exit (range 14) 4236 | -9/Garrison | Discovered new exit (range 10) 4355 | -9/Garrison | Discovered new exit (range 13) 4369 | -9/Garrison | Identified exit to Recycling 4378 | -9/Garrison | Installed Relay Interface Framework 4426 | -9/Garrison | Triggered checkpoint 4500 | -9/Garrison | Destroyed by S-10 Pest with Light Assault Rifle Last Messages --------------- 04099_ Field strength at 70. 04100_ Field strength at 60. 04101_ Field strength at 50. 04102_ The unstable cave ceiling collapses. 04102_ Field strength at 40. 04103_ Field strength at 30. 04104_ Field strength at 20. 04105_ Field strength at 10. 04106_ Stasis field depleted. 04129_ EXIT=FOUND 04369_ EXIT=IDENTIFIED: RECYCLING 04376_ Initiating installation procedure... 04378_ Relay Interface Framework installed. 04426_ Beams of light sweep through the air. An alarm sounds. 04489_ C-30 ARC bursts open, deploying its payload. 04489_ S-10 Pest unfolds itself. 04489_ S-10 Pest destroyed. 04492_ Imp. Ion Engine destroyed. 04498_ S-10 Pest destroyed. 04500_ Acquired 17 matter. Map ----- +----------------------------------------------------+ | ??????????????????????# #??????????????? | | ??????????????????????# #??????????????? | | ?####?????????????????# ##########??????????????? | | ? #?????????????????# #???????????????????????? | | ? #?????????????????# #???????????????????????? | | ?# #?????????????????# #???????????????????????? | | ?# #???????###???????# #???????????????????????? | | ?# #???????# ???????# #???????????????????????? | | ?# #???????# #???????# #???????????????????????? | | ?# #######?# #???????# #???????????????????????? | | ?# ## ### #???????# #???????????????????????? | | ### ## # # ##??????# #???????????????????????? | | [[ * ######## #???????????????????????? | | [ #???????????????????????? | | = #???????????????????????? | | # ## # ^###########???????????????????????? | | # ## ## ^^#?????????????????????????????????? | | ?????????????????????????????????? | | ?????????????????????????????????? | | ?????????????????????????????????? | | ?????????????????????????????????? | | # ## "# #?????????????????????????????????? | | # ## #" #############?????????????????????? | | #?????????????????????? | | #?????????????????????? | | # ##########@s#?????????????????????? | | ######""""######????????#* #?????????????????????? | | ????????????????????????# #?????????????????????? | | ????????????????????????# #?????????????????????? | | ????????????????????????# #?????????????????????? | | ???????????????????????? ?????????????????????? | | ???????????????????????? #????????????????????? | | ???????????????????????? ##????????????????????? | | ???????????????????????? ############?????????? | | ???????????????????????# g #?????????? | | ???????????????????????##%* #?????????? | | ???????????????????# % ######### > #?????????? | | ???????????????????# #######???????# #?????????? | | ???????????????????????????????????## ##?????????? | | ???????????????????????????????????#" "#?????????? | | ???????????????????????????????????#" "#?????????? | | ???????????????????????????????????#" "#?????????? | | ???????????????????????????????????#"""#?????????? | | ???????????????????????????????????#####?????????? | | ?????????????????????????????????????????????????? | | ?????????????????????????????????????????????????? | | ?????????????????????????????????????????????????? | | ?????????????????????????????????????????????????? | | ?????????????????????????????????????????????????? | | ?????????????????????????????????????????????????? | +----------------------------------------------------+ Best States ------------- Heat Dissipation 28 Energy Generation 12 Energy Capacity 265 Matter Stores 300 Matter Capacity 300 Sight Range 16 Terrain Scan Density 10 Utility Shielding 33 Weapon Shielding 66 Evasion (%) 40 Recoil Reduction 2 Item Schematics ----------------- None Robot Schematics ------------------ None Fabricated ------------ Nothing Alien Tech Used ----------------- None Achievements -------------- None Challenges ------------ None Game ------ Seed EnhancedMicroWand Manual? 0 Play Time 00:20:23 Cumulative 332.6 hours Start 2022.06.14 @ 17:05:56 End 2022.06.14 @ 17:23:52 Sessions 1 Manual Loads 0 Difficulty Rogue Special Mode None Game No. 593 Rogue 438 Adventurer 148 Explorer 7 Win Type - Total 11 Types 9/0/1/1/0/0/0/0/0 Lore% 74 Gallery% 87 Achievement% 67 Wizard Run 0 Options --------- ASCII 0 Keyboard 0 Movement Numpad Keybinds 0 Fullscreen 1 Font 18/SmallcapsGlow Map View 76x50 Tactical HUD 1 Map Filters NONE Filters NONE Steam 1 RUN: 8ad61023-518b-4967-bbd3-d3fb0b76f4a5